[Event "December 12 Early 2023"]
[Site "https://www.chess.com"]
[Date "2023.12.12"]
[Round "7"]
[White "Harsha Bharathakoti"]
[Black "Adla, Diego"]
[Result "1-0"]
[Board "32"]
[TimeControl "180+1"]
[WhiteFideId "5078776"]
[BlackFideId "100072"]
[WhiteElo "2892"]
[BlackElo "2669"]
[WhiteTeam "IND"]
[BlackTeam "ARG"]
[WhiteClock "0:00:02"]
[BlackClock "0:00:00"]

1. d4 {[%clk 0:03:00]}  Nf6 {[%clk 0:02:59]} 2. Bg5 {[%clk 0:03:00]}  g6 {[%clk 0:02:58]} 3. Bxf6 {[%clk 0:03:00]}  exf6 {[%clk 0:02:58]} 4. e3 {[%clk 0:03:01]}  Bg7 {[%clk 0:02:57]} 5. c4 {[%clk 0:03:00]}  O-O {[%clk 0:02:57]} 6. Nc3 {[%clk 0:03:01]}  c5 {[%clk 0:02:57]} 7. Nf3 {[%clk 0:02:56]}  f5 {[%clk 0:02:53]} 8. Rc1 {[%clk 0:02:55]}  d6 {[%clk 0:02:43]} 9. Be2 {[%clk 0:02:49]}  Nc6 {[%clk 0:02:43]} 10. O-O {[%clk 0:02:49]}  cxd4 {[%clk 0:02:37]} 11. exd4 {[%clk 0:02:48]}  Qb6 {[%clk 0:02:29]} 12. Na4 {[%clk 0:02:19]}  Qa5 {[%clk 0:02:26]} 13. a3 {[%clk 0:02:19]}  Bd7 {[%clk 0:02:19]} 14. Nc3 {[%clk 0:02:10]}  Qb6 {[%clk 0:02:19]} 15. Na4 {[%clk 0:01:29]}  Qa5 {[%clk 0:02:18]} 16. Nc3 {[%clk 0:01:20]}  Qb6 {[%clk 0:02:18]} 17. Nb5 {[%clk 0:00:48]}  a6 {[%clk 0:01:52]} 18. c5 {[%clk 0:00:49]}  dxc5 {[%clk 0:01:48]} 19. dxc5 {[%clk 0:00:50]}  Qd8 {[%clk 0:01:48]} 20. Nc3 {[%clk 0:00:51]}  Be6 {[%clk 0:01:40]} 21. b4 {[%clk 0:00:50]}  Qe7 {[%clk 0:01:39]} 22. Re1 {[%clk 0:00:48]}  Rad8 {[%clk 0:01:39]} 23. Qc2 {[%clk 0:00:49]}  Nd4 {[%clk 0:01:37]} 24. Nxd4 {[%clk 0:00:49]}  Bxd4 {[%clk 0:01:37]} 25. Bf3 {[%clk 0:00:41]}  Rd7 {[%clk 0:01:35]} 26. Na4 {[%clk 0:00:40]}  Qf6 {[%clk 0:01:33]} 27. Nb6 {[%clk 0:00:40]}  Re7 {[%clk 0:01:33]} 28. Nd5 {[%clk 0:00:39]}  Bxd5 {[%clk 0:01:32]} 29. Bxd5 {[%clk 0:00:40]}  Rfe8 {[%clk 0:01:32]} 30. Rxe7 {[%clk 0:00:40]}  Rxe7 {[%clk 0:01:31]} 31. Qd1 {[%clk 0:00:31]}  Kg7 {[%clk 0:01:26]} 32. Qd3 {[%clk 0:00:26]}  Rd7 {[%clk 0:01:18]} 33. Qf3 {[%clk 0:00:24]}  Bb2 {[%clk 0:01:17]} 34. Rd1 {[%clk 0:00:21]}  g5 {[%clk 0:01:07]} 35. g3 {[%clk 0:00:18]}  g4 {[%clk 0:01:07]} 36. Qb3 {[%clk 0:00:19]}  Bd4 {[%clk 0:01:01]} 37. Qc4 {[%clk 0:00:17]}  Be5 {[%clk 0:01:00]} 38. a4 {[%clk 0:00:13]}  h5 {[%clk 0:00:59]} 39. b5 {[%clk 0:00:14]}  axb5 {[%clk 0:01:00]} 40. axb5 {[%clk 0:00:15]}  h4 {[%clk 0:00:57]} 41. Re1 {[%clk 0:00:10]}  hxg3 {[%clk 0:00:55]} 42. hxg3 {[%clk 0:00:10]}  Re7 {[%clk 0:00:54]} 43. c6 {[%clk 0:00:08]}  bxc6 {[%clk 0:00:54]} 44. Bxc6 {[%clk 0:00:06]}  Qd6 {[%clk 0:00:46]} 45. Qc2 {[%clk 0:00:04]}  Kf6 {[%clk 0:00:39]} 46. Rd1 {[%clk 0:00:02]}  Qc7 {[%clk 0:00:37]} 47. Qc5 {[%clk 0:00:01]}  Bxg3 {[%clk 0:00:27]} 48. fxg3 {[%clk 0:00:02]}  Qxg3+ {[%clk 0:00:27]} 49. Kf1 {[%clk 0:00:02]}  Qf4+ {[%clk 0:00:13]} 50. Qf2 {[%clk 0:00:03]}  Qc4+ {[%clk 0:00:12]} 51. Kg1 {[%clk 0:00:03]}  Re2 {[%clk 0:00:10]} 52. Qd4+ {[%clk 0:00:03]}  Qxd4+ {[%clk 0:00:09]} 53. Rxd4 {[%clk 0:00:04]}  Rb2 {[%clk 0:00:10]} 54. Rd5 {[%clk 0:00:01]}  f4 {[%clk 0:00:09]} 55. Rc5 {[%clk 0:00:02]}  g3 {[%clk 0:00:03]} 56. Kf1 {[%clk 0:00:01]}  Kg6 {[%clk 0:00:02]} 57. Be4+ {[%clk 0:00:01]}  Kg7 {[%clk 0:00:02]} 58. Kg1 {[%clk 0:00:01]}  f6 {[%clk 0:00:02]} 59. Bf3 {[%clk 0:00:02]}  Rb3 {[%clk 0:00:02]} 60. Bd5 {[%clk 0:00:01]}  Rb2 {[%clk 0:00:02]} 61. Ba8 {[%clk 0:00:01]}  Kg6 {[%clk 0:00:02]} 62. Bc6 {[%clk 0:00:02]}  f5 {[%clk 0:00:02]} 63. Bd7 {[%clk 0:00:01]}  f3 {[%clk 0:00:00]} 64. Bxf5+ {[%clk 0:00:02]} 1-0

[Event "December 12 Early 2023"]
[Site "https://www.chess.com"]
[Date "2023.12.12"]
[Round "7"]
[White "Rasulov, Vugar"]
[Black "Agibileg, Uurtsaikh"]
[Result "1-0"]
[Board "33"]
[TimeControl "180+1"]
[WhiteFideId "13402390"]
[BlackFideId "4901606"]
[WhiteElo "2892"]
[BlackElo "2655"]
[WhiteTeam "AZE"]
[BlackTeam "MGL"]
[WhiteClock "0:00:12"]
[BlackClock "0:00:00"]

1. d4 {[%clk 0:03:00]}  Nf6 {[%clk 0:02:59]} 2. c4 {[%clk 0:03:01]}  g6 {[%clk 0:02:59]} 3. Nf3 {[%clk 0:03:00]}  Bg7 {[%clk 0:02:59]} 4. g3 {[%clk 0:02:59]}  O-O {[%clk 0:02:59]} 5. Bg2 {[%clk 0:03:00]}  c5 {[%clk 0:03:00]} 6. O-O {[%clk 0:02:59]}  d6 {[%clk 0:02:57]} 7. Nc3 {[%clk 0:02:56]}  cxd4 {[%clk 0:02:55]} 8. Nxd4 {[%clk 0:02:56]}  Qa5 {[%clk 0:02:56]} 9. Nd5 {[%clk 0:02:50]}  Nxd5 {[%clk 0:02:54]} 10. cxd5 {[%clk 0:02:50]}  Nd7 {[%clk 0:02:50]} 11. Bd2 {[%clk 0:02:38]}  Qb6 {[%clk 0:02:29]} 12. Bc3 {[%clk 0:02:38]}  Ne5 {[%clk 0:02:25]} 13. a4 {[%clk 0:02:34]}  Nc4 {[%clk 0:02:23]} 14. a5 {[%clk 0:02:32]}  Qd8 {[%clk 0:02:17]} 15. Qa4 {[%clk 0:02:22]}  Ne5 {[%clk 0:02:14]} 16. Rac1 {[%clk 0:02:22]}  Bd7 {[%clk 0:02:14]} 17. Qb3 {[%clk 0:02:22]}  Qb8 {[%clk 0:02:08]} 18. Bd2 {[%clk 0:01:55]}  Rc8 {[%clk 0:02:02]} 19. Rxc8+ {[%clk 0:01:54]}  Qxc8 {[%clk 0:02:03]} 20. Rc1 {[%clk 0:01:54]}  Qb8 {[%clk 0:01:54]} 21. h3 {[%clk 0:01:55]}  Be8 {[%clk 0:01:16]} 22. Be3 {[%clk 0:01:45]}  Nd7 {[%clk 0:01:15]} 23. Qc2 {[%clk 0:01:45]}  Qd8 {[%clk 0:01:11]} 24. b4 {[%clk 0:01:45]}  a6 {[%clk 0:01:02]} 25. Qc7 {[%clk 0:01:39]}  Qb8 {[%clk 0:00:44]} 26. Nb3 {[%clk 0:01:25]}  Bb2 {[%clk 0:00:38]} 27. Qxb8 {[%clk 0:01:25]}  Rxb8 {[%clk 0:00:37]} 28. Rc7 {[%clk 0:01:26]}  Ba3 {[%clk 0:00:25]} 29. Ba7 {[%clk 0:01:14]}  Ra8 {[%clk 0:00:24]} 30. Rxb7 {[%clk 0:01:13]}  Bxb4 {[%clk 0:00:24]} 31. Bd4 {[%clk 0:01:00]}  Rb8 {[%clk 0:00:21]} 32. Rxb8 {[%clk 0:00:44]}  Nxb8 {[%clk 0:00:22]} 33. Ba7 {[%clk 0:00:44]}  Ba4 {[%clk 0:00:21]} 34. Nd4 {[%clk 0:00:42]}  Nd7 {[%clk 0:00:21]} 35. Nc6 {[%clk 0:00:42]}  Bc5 {[%clk 0:00:12]} 36. Nxe7+ {[%clk 0:00:38]}  Kf8 {[%clk 0:00:12]} 37. Bxc5 {[%clk 0:00:38]}  Nxc5 {[%clk 0:00:12]} 38. Nc6 {[%clk 0:00:29]}  Ke8 {[%clk 0:00:10]} 39. f4 {[%clk 0:00:21]}  Bxc6 {[%clk 0:00:08]} 40. dxc6 {[%clk 0:00:22]}  Kd8 {[%clk 0:00:08]} 41. Bd5 {[%clk 0:00:21]}  f6 {[%clk 0:00:09]} 42. Kf2 {[%clk 0:00:20]}  Kc7 {[%clk 0:00:09]} 43. Ke3 {[%clk 0:00:20]}  Na4 {[%clk 0:00:05]} 44. Kd4 {[%clk 0:00:21]}  Nb2 {[%clk 0:00:05]} 45. Bb3 {[%clk 0:00:20]}  d5 {[%clk 0:00:02]} 46. Bxd5 {[%clk 0:00:19]}  Kd6 {[%clk 0:00:01]} 47. e4 {[%clk 0:00:19]}  Nd1 {[%clk 0:00:01]} 48. e5+ {[%clk 0:00:17]}  fxe5+ {[%clk 0:00:02]} 49. fxe5+ {[%clk 0:00:18]}  Kc7 {[%clk 0:00:03]} 50. Kc5 {[%clk 0:00:18]}  Ne3 {[%clk 0:00:02]} 51. Be4 {[%clk 0:00:17]}  g5 {[%clk 0:00:01]} 52. e6 {[%clk 0:00:17]}  Kd8 {[%clk 0:00:01]} 53. Kb6 {[%clk 0:00:15]}  Nc4+ {[%clk 0:00:01]} 54. Kxa6 {[%clk 0:00:15]}  Kc7 {[%clk 0:00:01]} 55. e7 {[%clk 0:00:15]}  Nd6 {[%clk 0:00:02]} 56. Bd5 {[%clk 0:00:13]}  Ne8 {[%clk 0:00:00]} 57. Bf7 {[%clk 0:00:12]} 1-0

[Event "December 12 Early 2023"]
[Site "https://www.chess.com"]
[Date "2023.12.12"]
[Round "7"]
[White "Demchenko, Anton"]
[Black "Koellner, Ruben Gideon"]
[Result "1-0"]
[Board "35"]
[TimeControl "180+1"]
[WhiteFideId "4160258"]
[BlackFideId "12993093"]
[WhiteElo "2880"]
[BlackElo "2652"]
[WhiteTeam "SLO"]
[BlackTeam "GER"]
[WhiteClock "0:00:10"]
[BlackClock "0:00:28"]

1. e4 {[%clk 0:03:00]}  d6 {[%clk 0:03:00]} 2. d4 {[%clk 0:02:57]}  Nf6 {[%clk 0:03:00]} 3. Nc3 {[%clk 0:02:54]}  e5 {[%clk 0:03:01]} 4. Nf3 {[%clk 0:02:52]}  Nbd7 {[%clk 0:03:00]} 5. Bc4 {[%clk 0:02:52]}  Be7 {[%clk 0:03:01]} 6. a4 {[%clk 0:02:52]}  c6 {[%clk 0:03:01]} 7. O-O {[%clk 0:02:51]}  h6 {[%clk 0:03:01]} 8. Be3 {[%clk 0:02:41]}  Qc7 {[%clk 0:03:02]} 9. Nh4 {[%clk 0:02:41]}  g6 {[%clk 0:03:01]} 10. a5 {[%clk 0:02:25]}  Nf8 {[%clk 0:03:00]} 11. d5 {[%clk 0:02:11]}  Ng4 {[%clk 0:02:42]} 12. Nf3 {[%clk 0:02:11]}  Nxe3 {[%clk 0:02:40]} 13. fxe3 {[%clk 0:02:12]}  c5 {[%clk 0:02:40]} 14. a6 {[%clk 0:02:03]}  Bd7 {[%clk 0:02:37]} 15. axb7 {[%clk 0:02:02]}  Qxb7 {[%clk 0:02:37]} 16. Nxe5 {[%clk 0:01:45]}  dxe5 {[%clk 0:02:15]} 17. d6 {[%clk 0:01:45]}  Bg5 {[%clk 0:02:15]} 18. Bd5 {[%clk 0:01:27]}  Qxb2 {[%clk 0:02:03]} 19. Qd2 {[%clk 0:01:04]}  Rb8 {[%clk 0:01:41]} 20. Rfb1 {[%clk 0:00:55]}  Qxb1+ {[%clk 0:01:40]} 21. Nxb1 {[%clk 0:00:44]}  Ne6 {[%clk 0:01:39]} 22. Nc3 {[%clk 0:00:42]}  O-O {[%clk 0:01:37]} 23. Rxa7 {[%clk 0:00:42]}  Rfd8 {[%clk 0:01:38]} 24. Qf2 {[%clk 0:00:38]}  Rb6 {[%clk 0:01:24]} 25. h4 {[%clk 0:00:35]}  Bxe3 {[%clk 0:01:14]} 26. Qxe3 {[%clk 0:00:35]}  Rxd6 {[%clk 0:01:15]} 27. Qxh6 {[%clk 0:00:31]}  Nf4 {[%clk 0:01:15]} 28. Qg5 {[%clk 0:00:28]}  Be6 {[%clk 0:01:09]} 29. Qxe5 {[%clk 0:00:24]}  Nxd5 {[%clk 0:01:03]} 30. Nxd5 {[%clk 0:00:22]}  Bxd5 {[%clk 0:01:04]} 31. exd5 {[%clk 0:00:23]}  Rxd5 {[%clk 0:01:05]} 32. Qe7 {[%clk 0:00:20]}  Rf8 {[%clk 0:00:58]} 33. Rd7 {[%clk 0:00:20]}  Rf5 {[%clk 0:00:57]} 34. Rd8 {[%clk 0:00:20]}  Rxd8 {[%clk 0:00:57]} 35. Qxd8+ {[%clk 0:00:21]}  Kh7 {[%clk 0:00:58]} 36. Qe7 {[%clk 0:00:20]}  Kg7 {[%clk 0:00:57]} 37. Kh2 {[%clk 0:00:20]}  Rd5 {[%clk 0:00:55]} 38. Kh3 {[%clk 0:00:17]}  Kg8 {[%clk 0:00:52]} 39. Qe4 {[%clk 0:00:17]}  Rf5 {[%clk 0:00:51]} 40. g4 {[%clk 0:00:17]}  Rf6 {[%clk 0:00:48]} 41. Kg3 {[%clk 0:00:17]}  Re6 {[%clk 0:00:47]} 42. Qd5 {[%clk 0:00:16]}  Re3+ {[%clk 0:00:45]} 43. Kf4 {[%clk 0:00:12]}  Rc3 {[%clk 0:00:45]} 44. Qd2 {[%clk 0:00:12]}  Rc4+ {[%clk 0:00:45]} 45. Kg3 {[%clk 0:00:09]}  Kg7 {[%clk 0:00:42]} 46. c3 {[%clk 0:00:09]}  Ra4 {[%clk 0:00:39]} 47. Qd5 {[%clk 0:00:10]}  Ra5 {[%clk 0:00:37]} 48. Qe5+ {[%clk 0:00:10]}  Kg8 {[%clk 0:00:36]} 49. h5 {[%clk 0:00:09]}  gxh5 {[%clk 0:00:32]} 50. gxh5 {[%clk 0:00:10]}  Ra6 {[%clk 0:00:28]} 51. Qxc5 {[%clk 0:00:10]} 1-0

[Event "December 12 Early 2023"]
[Site "https://www.chess.com"]
[Date "2023.12.12"]
[Round "7"]
[White "Riehle, Marco"]
[Black "DHLT216"]
[Result "0-1"]
[Board "36"]
[TimeControl "180+1"]
[WhiteFideId "12904392"]
[WhiteElo "2878"]
[BlackElo "2644"]
[WhiteTeam "GER"]
[WhiteClock "0:00:37"]
[BlackClock "0:00:03"]

1. e4 {[%clk 0:03:00]}  c5 {[%clk 0:02:59]} 2. a3 {[%clk 0:02:58]}  g6 {[%clk 0:02:53]} 3. h4 {[%clk 0:02:58]}  h5 {[%clk 0:02:52]} 4. Nc3 {[%clk 0:02:57]}  Bg7 {[%clk 0:02:52]} 5. Bc4 {[%clk 0:02:57]}  Nc6 {[%clk 0:02:49]} 6. d3 {[%clk 0:02:57]}  d6 {[%clk 0:02:47]} 7. Bg5 {[%clk 0:02:51]}  Nf6 {[%clk 0:02:42]} 8. Nge2 {[%clk 0:02:49]}  Rb8 {[%clk 0:02:38]} 9. Qd2 {[%clk 0:02:42]}  Bd7 {[%clk 0:02:21]} 10. O-O-O {[%clk 0:02:38]}  a6 {[%clk 0:02:12]} 11. f4 {[%clk 0:02:38]}  b5 {[%clk 0:02:11]} 12. Bb3 {[%clk 0:02:38]}  Na5 {[%clk 0:02:01]} 13. e5 {[%clk 0:02:32]}  Nxb3+ {[%clk 0:01:57]} 14. cxb3 {[%clk 0:02:32]}  dxe5 {[%clk 0:01:57]} 15. fxe5 {[%clk 0:02:32]}  Ng4 {[%clk 0:01:57]} 16. d4 {[%clk 0:02:31]}  Nf2 {[%clk 0:01:10]} 17. Nd5 {[%clk 0:02:24]}  Be6 {[%clk 0:01:05]} 18. Nxe7 {[%clk 0:02:22]}  Ne4 {[%clk 0:01:04]} 19. Qf4 {[%clk 0:02:08]}  Nxg5 {[%clk 0:00:57]} 20. Nc6 {[%clk 0:02:08]}  Qc8 {[%clk 0:00:41]} 21. Nxb8 {[%clk 0:02:05]}  Nh3 {[%clk 0:00:37]} 22. gxh3 {[%clk 0:02:03]}  Bh6 {[%clk 0:00:37]} 23. d5 {[%clk 0:01:47]}  Bxd5 {[%clk 0:00:26]} 24. Rxd5 {[%clk 0:01:42]}  Bxf4+ {[%clk 0:00:24]} 25. Nxf4 {[%clk 0:01:42]}  Qxb8 {[%clk 0:00:24]} 26. Kb1 {[%clk 0:01:34]}  O-O {[%clk 0:00:23]} 27. Rxc5 {[%clk 0:01:35]}  Rc8 {[%clk 0:00:21]} 28. Rd5 {[%clk 0:01:33]}  Qc7 {[%clk 0:00:19]} 29. Rhd1 {[%clk 0:01:31]}  Qc2+ {[%clk 0:00:14]} 30. Ka2 {[%clk 0:01:31]}  Rc3 {[%clk 0:00:15]} 31. e6 {[%clk 0:01:24]}  Rxb3 {[%clk 0:00:11]} 32. exf7+ {[%clk 0:01:04]}  Kxf7 {[%clk 0:00:11]} 33. Nd3 {[%clk 0:01:04]}  Rc3 {[%clk 0:00:04]} 34. Rf1+ {[%clk 0:00:54]}  Kg7 {[%clk 0:00:04]} 35. Ne5 {[%clk 0:00:37]}  Rxa3+ {[%clk 0:00:03]} 36. Kxa3 {[%clk 0:00:37]}  Qa4# {[%clk 0:00:03]} 0-1

[Event "December 12 Early 2023"]
[Site "https://www.chess.com"]
[Date "2023.12.12"]
[Round "7"]
[White "Dobrikov, Marco"]
[Black "Corrales Jimenez, Fidel"]
[Result "0-1"]
[Board "38"]
[TimeControl "180+1"]
[WhiteFideId "12950378"]
[BlackFideId "3506690"]
[WhiteElo "2634"]
[BlackElo "2844"]
[WhiteTeam "GER"]
[BlackTeam "USA"]
[WhiteClock "0:00:21"]
[BlackClock "0:00:14"]

1. c4 {[%clk 0:03:00]}  e5 {[%clk 0:02:59]} 2. Nc3 {[%clk 0:03:00]}  Nf6 {[%clk 0:02:58]} 3. g3 {[%clk 0:03:00]}  d5 {[%clk 0:02:57]} 4. cxd5 {[%clk 0:03:01]}  Nxd5 {[%clk 0:02:57]} 5. Bg2 {[%clk 0:03:02]}  Nb6 {[%clk 0:02:58]} 6. Nf3 {[%clk 0:03:02]}  Nc6 {[%clk 0:02:57]} 7. O-O {[%clk 0:03:02]}  Be7 {[%clk 0:02:58]} 8. d3 {[%clk 0:03:03]}  O-O {[%clk 0:02:58]} 9. Bd2 {[%clk 0:03:03]}  Re8 {[%clk 0:02:57]} 10. Rc1 {[%clk 0:03:04]}  Bf8 {[%clk 0:02:57]} 11. Be3 {[%clk 0:02:58]}  Nd4 {[%clk 0:02:56]} 12. Bxd4 {[%clk 0:02:57]}  exd4 {[%clk 0:02:56]} 13. Ne4 {[%clk 0:02:56]}  c6 {[%clk 0:02:50]} 14. Nc5 {[%clk 0:02:44]}  Qd5 {[%clk 0:02:34]} 15. Nb3 {[%clk 0:02:38]}  a5 {[%clk 0:02:02]} 16. Nfxd4 {[%clk 0:02:39]}  Qe5 {[%clk 0:02:02]} 17. e3 {[%clk 0:02:22]}  a4 {[%clk 0:01:57]} 18. Nd2 {[%clk 0:02:22]}  Rd8 {[%clk 0:01:31]} 19. Rxc6 {[%clk 0:01:53]}  bxc6 {[%clk 0:01:15]} 20. Nxc6 {[%clk 0:01:52]}  Qg5 {[%clk 0:01:09]} 21. Nxd8 {[%clk 0:01:52]}  Bg4 {[%clk 0:01:09]} 22. Ne4 {[%clk 0:01:32]}  Qh5 {[%clk 0:00:39]} 23. f3 {[%clk 0:01:29]}  Bd7 {[%clk 0:00:35]} 24. Nb7 {[%clk 0:01:25]}  Rb8 {[%clk 0:00:35]} 25. Nbd6 {[%clk 0:01:24]}  Qd5 {[%clk 0:00:34]} 26. f4 {[%clk 0:01:20]}  Qxa2 {[%clk 0:00:34]} 27. f5 {[%clk 0:01:07]}  Nd5 {[%clk 0:00:34]} 28. Qh5 {[%clk 0:01:02]}  Bxd6 {[%clk 0:00:20]} 29. Nxd6 {[%clk 0:01:00]}  Nxe3 {[%clk 0:00:20]} 30. f6 {[%clk 0:00:45]}  Rxb2 {[%clk 0:00:16]} 31. Be4 {[%clk 0:00:29]}  Rg2+ {[%clk 0:00:13]} 32. Kh1 {[%clk 0:00:29]}  Rxh2+ {[%clk 0:00:12]} 33. Qxh2 {[%clk 0:00:28]}  Qxh2+ {[%clk 0:00:13]} 34. Kxh2 {[%clk 0:00:29]}  Nxf1+ {[%clk 0:00:13]} 35. Kg2 {[%clk 0:00:30]}  a3 {[%clk 0:00:14]} 36. Bd5 {[%clk 0:00:21]}  Ne3+ {[%clk 0:00:14]} 0-1

[Event "December 12 Early 2023"]
[Site "https://www.chess.com"]
[Date "2023.12.12"]
[Round "7"]
[White "Principe, Gerson"]
[Black "Wagh Suyog"]
[Result "0-1"]
[Board "44"]
[TimeControl "180+1"]
[WhiteFideId "3804550"]
[BlackFideId "25071688"]
[WhiteElo "2622"]
[BlackElo "2789"]
[WhiteTeam "PER"]
[BlackTeam "IND"]
[WhiteClock "0:01:52"]
[BlackClock "0:02:03"]

1. d4 {[%clk 0:02:57]}  Nf6 {[%clk 0:02:59]} 2. e3 {[%clk 0:02:56]}  d5 {[%clk 0:02:59]} 3. Nf3 {[%clk 0:02:56]}  c5 {[%clk 0:03:00]} 4. Be2 {[%clk 0:02:56]}  Nc6 {[%clk 0:03:00]} 5. O-O {[%clk 0:02:56]}  cxd4 {[%clk 0:03:01]} 6. exd4 {[%clk 0:02:56]}  Bf5 {[%clk 0:03:01]} 7. c3 {[%clk 0:02:54]}  e6 {[%clk 0:03:02]} 8. Bg5 {[%clk 0:02:53]}  Be7 {[%clk 0:03:01]} 9. Nbd2 {[%clk 0:02:53]}  h6 {[%clk 0:03:01]} 10. Bh4 {[%clk 0:02:53]}  O-O {[%clk 0:03:01]} 11. Re1 {[%clk 0:02:53]}  a6 {[%clk 0:03:00]} 12. Bxf6 {[%clk 0:02:44]}  Bxf6 {[%clk 0:03:00]} 13. a4 {[%clk 0:02:43]}  Qb6 {[%clk 0:02:43]} 14. Qb3 {[%clk 0:02:37]}  Qc7 {[%clk 0:02:42]} 15. Qd1 {[%clk 0:02:31]}  Na5 {[%clk 0:02:40]} 16. b4 {[%clk 0:02:22]}  Nc6 {[%clk 0:02:37]} 17. Nb3 {[%clk 0:02:21]}  a5 {[%clk 0:02:35]} 18. b5 {[%clk 0:02:18]}  Ne7 {[%clk 0:02:33]} 19. Rc1 {[%clk 0:02:17]}  b6 {[%clk 0:02:32]} 20. h3 {[%clk 0:02:11]}  Rac8 {[%clk 0:02:30]} 21. Bd3 {[%clk 0:02:11]}  Bxd3 {[%clk 0:02:30]} 22. Qxd3 {[%clk 0:02:12]}  Qd6 {[%clk 0:02:29]} 23. Nbd2 {[%clk 0:02:08]}  Qa3 {[%clk 0:02:20]} 24. Qc2 {[%clk 0:02:08]}  Nf5 {[%clk 0:02:16]} 25. Qb3 {[%clk 0:02:05]}  Qxb3 {[%clk 0:02:11]} 26. Nxb3 {[%clk 0:02:06]}  Rc4 {[%clk 0:02:11]} 27. Nfd2 {[%clk 0:02:04]}  Rxa4 {[%clk 0:02:11]} 28. Ra1 {[%clk 0:01:56]}  Rxa1 {[%clk 0:02:10]} 29. Rxa1 {[%clk 0:01:57]}  Rc8 {[%clk 0:02:10]} 30. Nb1 {[%clk 0:01:52]}  Nd6 {[%clk 0:02:03]} 0-1

[Event "December 12 Early 2023"]
[Site "https://www.chess.com"]
[Date "2023.12.12"]
[Round "7"]
[White "Vlassov, Nikolai"]
[Black "Gan-Erdene, Sugar"]
[Result "1-0"]
[Board "46"]
[TimeControl "180+1"]
[WhiteFideId "4103360"]
[BlackFideId "4902980"]
[WhiteElo "2612"]
[BlackElo "2784"]
[WhiteTeam "FID"]
[BlackTeam "MGL"]
[WhiteClock "0:00:05"]
[BlackClock "0:00:18"]

1. e4 {[%clk 0:03:00]}  c5 {[%clk 0:02:59]} 2. c3 {[%clk 0:02:59]}  Nf6 {[%clk 0:02:57]} 3. e5 {[%clk 0:02:58]}  Nd5 {[%clk 0:02:58]} 4. d4 {[%clk 0:02:58]}  cxd4 {[%clk 0:02:58]} 5. cxd4 {[%clk 0:02:58]}  d6 {[%clk 0:02:57]} 6. Bc4 {[%clk 0:02:57]}  e6 {[%clk 0:02:57]} 7. Nf3 {[%clk 0:02:56]}  Nc6 {[%clk 0:02:58]} 8. O-O {[%clk 0:02:55]}  Be7 {[%clk 0:02:58]} 9. Qe2 {[%clk 0:02:55]}  Nb6 {[%clk 0:02:55]} 10. Bb3 {[%clk 0:02:52]}  O-O {[%clk 0:02:52]} 11. Nc3 {[%clk 0:02:51]}  Nb4 {[%clk 0:02:43]} 12. Bf4 {[%clk 0:02:44]}  N4d5 {[%clk 0:02:42]} 13. Bg3 {[%clk 0:02:25]}  Nxc3 {[%clk 0:02:41]} 14. bxc3 {[%clk 0:02:25]}  dxe5 {[%clk 0:02:39]} 15. Nxe5 {[%clk 0:02:22]}  Bd7 {[%clk 0:02:39]} 16. f4 {[%clk 0:02:16]}  g6 {[%clk 0:02:37]} 17. Rad1 {[%clk 0:02:06]}  Rc8 {[%clk 0:02:37]} 18. Rf3 {[%clk 0:02:04]}  Ba4 {[%clk 0:02:31]} 19. Re1 {[%clk 0:01:44]}  Bf6 {[%clk 0:02:25]} 20. Nxf7 {[%clk 0:01:28]}  Kxf7 {[%clk 0:02:15]} 21. Bxe6+ {[%clk 0:01:28]}  Kg7 {[%clk 0:02:15]} 22. Bxc8 {[%clk 0:01:27]}  Qxc8 {[%clk 0:02:15]} 23. f5 {[%clk 0:01:28]}  Bc6 {[%clk 0:02:11]} 24. Rff1 {[%clk 0:01:20]}  Nd5 {[%clk 0:02:10]} 25. Qd2 {[%clk 0:01:05]}  Bb5 {[%clk 0:02:07]} 26. Rf3 {[%clk 0:01:00]}  gxf5 {[%clk 0:02:00]} 27. Be5 {[%clk 0:01:00]}  f4 {[%clk 0:01:57]} 28. Bxf4 {[%clk 0:00:52]}  Nxf4 {[%clk 0:01:56]} 29. Qxf4 {[%clk 0:00:47]}  Qd7 {[%clk 0:01:42]} 30. Rg3+ {[%clk 0:00:31]}  Kh8 {[%clk 0:01:42]} 31. Rge3 {[%clk 0:00:25]}  Bg7 {[%clk 0:01:38]} 32. Qg5 {[%clk 0:00:19]}  h6 {[%clk 0:01:23]} 33. Qg3 {[%clk 0:00:18]}  Rf7 {[%clk 0:01:18]} 34. h3 {[%clk 0:00:16]}  a6 {[%clk 0:01:16]} 35. Qh4 {[%clk 0:00:17]}  Qf5 {[%clk 0:01:12]} 36. Kh2 {[%clk 0:00:15]}  Kh7 {[%clk 0:01:11]} 37. Re7 {[%clk 0:00:15]}  Bc6 {[%clk 0:01:06]} 38. Rxf7 {[%clk 0:00:12]}  Qxf7 {[%clk 0:01:06]} 39. Re7 {[%clk 0:00:12]}  Qg6 {[%clk 0:01:03]} 40. Qg3 {[%clk 0:00:09]}  h5 {[%clk 0:01:01]} 41. c4 {[%clk 0:00:09]}  Qxg3+ {[%clk 0:00:55]} 42. Kxg3 {[%clk 0:00:09]}  h4+ {[%clk 0:00:55]} 43. Kxh4 {[%clk 0:00:08]}  Bxg2 {[%clk 0:00:54]} 44. d5 {[%clk 0:00:08]}  Kg6 {[%clk 0:00:54]} 45. Rxb7 {[%clk 0:00:08]}  Be5 {[%clk 0:00:52]} 46. Rb6+ {[%clk 0:00:07]}  Kf5 {[%clk 0:00:52]} 47. Rxa6 {[%clk 0:00:07]}  Bf1 {[%clk 0:00:51]} 48. Kh5 {[%clk 0:00:07]}  Bxc4 {[%clk 0:00:49]} 49. Ra5 {[%clk 0:00:07]}  Be2+ {[%clk 0:00:47]} 50. Kh6 {[%clk 0:00:07]}  Bd6 {[%clk 0:00:46]} 51. Kg7 {[%clk 0:00:07]}  Ke5 {[%clk 0:00:46]} 52. h4 {[%clk 0:00:07]}  Kd4 {[%clk 0:00:46]} 53. Kg6 {[%clk 0:00:06]}  Bd3+ {[%clk 0:00:45]} 54. Kg5 {[%clk 0:00:06]}  Be4 {[%clk 0:00:43]} 55. h5 {[%clk 0:00:06]}  Bxd5 {[%clk 0:00:44]} 56. h6 {[%clk 0:00:06]}  Be7+ {[%clk 0:00:43]} 57. Kg6 {[%clk 0:00:06]}  Be4+ {[%clk 0:00:42]} 58. Kf7 {[%clk 0:00:06]}  Bb4 {[%clk 0:00:40]} 59. Ra4 {[%clk 0:00:07]}  Kc3 {[%clk 0:00:39]} 60. a3 {[%clk 0:00:07]}  Bd5+ {[%clk 0:00:39]} 61. Kg7 {[%clk 0:00:06]}  Bd6 {[%clk 0:00:38]} 62. h7 {[%clk 0:00:06]}  Be5+ {[%clk 0:00:38]} 63. Kg6 {[%clk 0:00:07]}  Bb3 {[%clk 0:00:38]} 64. Ra5 {[%clk 0:00:06]}  Bc2+ {[%clk 0:00:38]} 65. Kh6 {[%clk 0:00:06]}  Bd4 {[%clk 0:00:38]} 66. Rd5 {[%clk 0:00:05]}  Be3+ {[%clk 0:00:36]} 67. Kg7 {[%clk 0:00:05]}  Bxh7 {[%clk 0:00:37]} 68. Kxh7 {[%clk 0:00:06]}  Kc4 {[%clk 0:00:36]} 69. Re5 {[%clk 0:00:05]}  Bc5 {[%clk 0:00:36]} 70. a4 {[%clk 0:00:05]}  Kb4 {[%clk 0:00:35]} 71. Kg6 {[%clk 0:00:05]}  Ba7 {[%clk 0:00:32]} 72. a5 {[%clk 0:00:04]}  Ka4 {[%clk 0:00:18]} 73. a6 {[%clk 0:00:05]} 1-0